Workbook

Sheet Dashboard
A1: Sent this month: | D1: 1671 | F1: Left process at stage 1: | J1: 1046 | L1: Left process at stage 2: | P1: 57 | R1: Exited process: | V1: 324 | X1: Settled: | AA1: 303
A3: Δ from last month: | D3: -1282 | F3: Δ from last month: | J3: -475 | L3: Δ from last month: | P3: -7 | R3: Δ from last month: | V3: -205 | X3: Δ from last month: | AA3: -53
A5: Rolling 12 months: | D5: 21349 | F5: Rolling 12 months: | J5: 17094 | L5: Rolling 12 months: | P5: 699 | R5: Rolling 12 months: | V5: 4596 | X5: Rolling 12 months: | AA5: 3551
A7: Left Process Breakdowns - Stage 1:
A9: Reason | H9: This Month | J9: Last Month | L9: Δ
A10: Liability Decision Timeout | H10: 664 | J10: 1083 | L10: -419
A11: Other | H11: 382 | J11: 438 | L11: -56
A12: Total | H12: 1046 | J12: 1521 | L12: -475
A13: Left Process Breakdowns - Stage 2:
A15: Reason | H15: This Month | J15: Last Month | L15: Δ
A16: Interim payment more than £1,000 not agreed: | H16: 0 | J16: 0 | L16: 0
A17: Settlement pack repudiated: | H17: 2 | J17: 0 | L17: 2
A18: Settlement pack timeout: | H18: 21 | J18: 21 | L18: 0
A19: No agreement; Court Proceedings pack: | H19: 34 | J19: 43 | L19: -9
A20: Total | H20: 57 | J20: 64 | L20: -7

Sheet Backing Sheet Data (hidden)
A1: Reporting date | B1: 2021-02-01
A2: Previous month | B2: =EDATE(B1,-1) -> 2021-01-01 | S2: =SUBTOTAL(9,tblRTABackingData[CNFs Sent]) -> 391688 | T2: =SUBTOTAL(9,tblRTABackingData[CNFs left at Stage 1]) -> 246519 | U2: =SUBTOTAL(9,tblRTABackingData[Stage 2 Exit]) -> 4579 | V2: =SUBTOTAL(9,tblRTABackingData[Exit process]) -> 67947 | W2: =SUBTOTAL(9,tblRTABackingData[Court Pack]) -> 4325 | X2: =SUBTOTAL(9,tblRTABackingData[Settled claims]) -> 43097 | Y2: =SUBTOTAL(9,tblRTABackingData[General Damages]) -> 347035.8131
R3: Period | S3: CNFs Sent | T3: CNFs left at Stage 1 | U3: Stage 2 Exit | V3: Exit process | W3: Court Pack | X3: Settled claims | Y3: General Damages | AA3: Period | AB3: Rolling 12 CNF Sent | AC3: Rolling 12 CNF Left at Stage 1 | AD3: Rolling 12 Stage 2 Exit | AE3: Rolling 12 Exit Process | AF3: Rolling 12 Court Pack | AG3: Rolling 12 Settled Claims | AI3: Period | AJ3: CNFs Sent | AK3: CNFs left at Stage 1 | AL3: Stage 2 Exit | AM3: Exit process | AN3: Court Pack | AO3: Settled claims | AP3: General Damages
A4: Rolling 12 CNFs sent | E4: Average General Damages chart data | I4: Left Process Breakdown | R4: 2013-08-01 | S4: 370 | T4: 6 | U4: 0 | V4: 27 | W4: 0 | X4: 0 | AA4: 2013-08-01 | AI4: 2013-08-01 | AJ4: 370 | AK4: 6 | AL4: 0 | AM4: 27 | AN4: 0 | AO4: 0
R5: 2013-09-01 | S5: 1845 | T5: 208 | U5: 0 | V5: 91 | W5: 0 | X5: 4 | Y5: 1300 | AA5: 2013-09-01 | AI5: 2013-09-01 | AJ5: 1849 | AK5: 208 | AL5: 0 | AM5: 91 | AN5: 0 | AO5: 4 | AP5: 1300
A6: Period | B6: Rolling 12 Sent | E6: Row Labels | F6: Ave General Damages | I6: This Month LDT | J6: This Month Other Liability | K6: This Month Interim Payment Not Agreed | L6: This Month Repudiated | M6: This Month Timeout | N6: This Month Court Proceedings | R6: 2013-10-01 | S6: 3376 | T6: 840 | U6: 1 | V6: 224 | W6: 0 | X6: 8 | Y6: 1281.25 | AA6: 2013-10-01 | AI6: 2013-10-01 | AJ6: 3391 | AK6: 840 | AL6: 1 | AM6: 224 | AN6: 0 | AO6: 8 | AP6: 1281.25
A7: 2020-03-01 | B7: 53596 | E7: 2020-03-01 | F7: 4499.423504 | I7: 664 | J7: 382 | K7: 0 | L7: 2 | M7: 21 | N7: 34 | R7: 2013-11-01 | S7: 3843 | T7: 1558 | U7: 0 | V7: 271 | W7: 0 | X7: 39 | Y7: 1977.948717 | AA7: 2013-11-01 | AI7: 2013-11-01 | AJ7: 3851 | AK7: 1558 | AL7: 0 | AM7: 271 | AN7: 0 | AO7: 39 | AP7: 1977.948717
A8: 2020-04-01 | B8: 52039 | E8: 2020-04-01 | F8: 4507.785 | R8: 2013-12-01 | S8: 3352 | T8: 1837 | U8: 6 | V8: 293 | W8: 0 | X8: 50 | Y8: 2105 | AA8: 2013-12-01 | AI8: 2013-12-01 | AJ8: 3361 | AK8: 1837 | AL8: 6 | AM8: 293 | AN8: 0 | AO8: 50 | AP8: 2105
A9: 2020-05-01 | B9: 50016 | E9: 2020-05-01 | F9: 4405.331326 | I9: CNF Sent Monthly Volumes Chart Data | R9: 2014-01-01 | S9: 5225 | T9: 2352 | U9: 10 | V9: 479 | W9: 2 | X9: 108 | Y9: 2417.350092 | AA9: 2014-01-01 | AI9: 2014-01-01 | AJ9: 5241 | AK9: 2352 | AL9: 10 | AM9: 479 | AN9: 2 | AO9: 108 | AP9: 2417.350092
A10: 2020-06-01 | B10: 48632 | E10: 2020-06-01 | F10: 4551.161616 | R10: 2014-02-01 | S10: 5088 | T10: 2165 | U10: 16 | V10: 443 | W10: 4 | X10: 149 | Y10: 2474.980067 | AA10: 2014-02-01 | AI10: 2014-02-01 | AJ10: 5112 | AK10: 2165 | AL10: 16 | AM10: 443 | AN10: 4 | AO10: 149 | AP10: 2474.980067
A11: 2020-07-01 | B11: 46886 | E11: 2020-07-01 | F11: 4857.192509 | I11: Sum of ClaimCount | J11: Column Labels | R11: 2014-03-01 | S11: 5767 | T11: 3147 | U11: 29 | V11: 581 | W11: 5 | X11: 208 | Y11: 2764.122451 | AA11: 2014-03-01 | AI11: 2014-03-01 | AJ11: 5783 | AK11: 3147 | AL11: 29 | AM11: 581 | AN11: 5 | AO11: 208 | AP11: 2764.122451
A12: 2020-08-01 | B12: 45143 | E12: 2020-08-01 | F12: 4876.138125 | I12: Row Labels | J12: RTA | K12: PL | L12: ELD | M12: EL | O12: Grand Total | R12: 2014-04-01 | S12: 5507 | T12: 3269 | U12: 26 | V12: 675 | W12: 7 | X12: 245 | Y12: 2658.43751 | AA12: 2014-04-01 | AI12: 2014-04-01 | AJ12: 5531 | AK12: 3269 | AL12: 26 | AM12: 675 | AN12: 7 | AO12: 245 | AP12: 2658.43751
A13: 2020-09-01 | B13: 44556 | E13: 2020-09-01 | F13: 4371.784805 | I13: 2020-03-01 | J13: 49232 | K13: 2586 | L13: 192 | M13: 1798 | N13: 3460 | O13: 57268 | R13: 2014-05-01 | S13: 5820 | T13: 3467 | U13: 34 | V13: 730 | W13: 4 | X13: 269 | Y13: 2944.211561 | AA13: 2014-05-01 | AI13: 2014-05-01 | AJ13: 5843 | AK13: 3467 | AL13: 34 | AM13: 730 | AN13: 4 | AO13: 269 | AP13: 2944.211561
A14: 2020-10-01 | B14: 43621 | E14: 2020-10-01 | F14: 4653.554139 | I14: 2020-04-01 | J14: 24499 | K14: 1703 | L14: 262 | M14: 1215 | N14: 2241 | O14: 29920 | R14: 2014-06-01 | S14: 6194 | T14: 3535 | U14: 41 | V14: 749 | W14: 22 | X14: 344 | Y14: 3020.030377 | AA14: 2014-06-01 | AI14: 2014-06-01 | AJ14: 6217 | AK14: 3535 | AL14: 41 | AM14: 749 | AN14: 22 | AO14: 344 | AP14: 3020.030377
A15: 2020-11-01 | B15: 42531 | E15: 2020-11-01 | F15: 4810.599484 | I15: 2020-05-01 | J15: 22866 | K15: 1378 | L15: 164 | M15: 902 | N15: 1818 | O15: 27128 | R15: 2014-07-01 | S15: 7212 | T15: 3973 | U15: 53 | V15: 881 | W15: 19 | X15: 446 | Y15: 3146.820896 | AA15: 2014-07-01 | AB15: =SUM(S4:S15) -> 53599 | AC15: =SUM(T4:T15) -> 26357 | AD15: 216 | AE15: 5444 | AF15: 63 | AG15: 1870 | AI15: 2014-07-01 | AJ15: 7252 | AK15: 3973 | AL15: 53 | AM15: 881 | AN15: 19 | AO15: 446 | AP15: 3146.820896
A16: 2020-12-01 | B16: 41631 | E16: 2020-12-01 | F16: 4413.989243 | I16: 2020-06-01 | J16: 32354 | K16: 1658 | L16: 162 | M16: 1064 | N16: 2235 | O16: 37473 | R16: 2014-08-01 | S16: 6132 | T16: 3643 | U16: 37 | V16: 754 | W16: 13 | X16: 384 | Y16: 3308.337057 | AA16: 2014-08-01 | AB16: 59361 | AC16: =SUM(T5:T16) -> 29994 | AD16: 253 | AE16: 6171 | AF16: 76 | AG16: 2254 | AI16: 2014-08-01 | AJ16: 6165 | AK16: 3643 | AL16: 37 | AM16: 754 | AN16: 13 | AO16: 384 | AP16: 3308.337057
A17: 2021-01-01 | B17: 22323 | E17: 2021-01-01 | F17: 4511.289055 | I17: 2020-07-01 | J17: 39916 | K17: 1930 | L17: 199 | M17: 1188 | N17: 2679 | O17: 45912 | R17: 2014-09-01 | S17: 7231 | T17: 4136 | U17: 62 | V17: 1008 | W17: 22 | X17: 485 | Y17: 3106.994659 | AA17: 2014-09-01 | AB17: 64747 | AC17: =SUM(T6:T17) -> 33922 | AD17: 315 | AE17: 7088 | AF17: 98 | AG17: 2735 | AI17: 2014-09-01 | AJ17: 7274 | AK17: 4136 | AL17: 62 | AM17: 1008 | AN17: 22 | AO17: 485 | AP17: 3106.994659
A18: 2021-02-01 | B18: =VLOOKUP(A18,tblPrevious12[#All],2,FALSE) -> 21349 | E18: 2021-02-01 | F18: 4595.191023 | I18: 2020-08-01 | J18: 37522 | K18: 1781 | L18: 119 | M18: 1094 | N18: 2425 | O18: 42941 | R18: 2014-10-01 | S18: 7631 | T18: 4310 | U18: 60 | V18: 1134 | W18: 34 | X18: 616 | Y18: 3176.703084 | AA18: 2014-10-01 | AB18: 69002 | AC18: =SUM(T7:T18) -> 37392 | AD18: 374 | AE18: 7998 | AF18: 132 | AG18: 3343 | AI18: 2014-10-01 | AJ18: 7688 | AK18: 4310 | AL18: 60 | AM18: 1134 | AN18: 34 | AO18: 616 | AP18: 3176.703084
E19: Grand Total | F19: 55053.43983 | I19: 2020-09-01 | J19: 44540 | K19: 2225 | L19: 208 | M19: 1423 | N19: 3218 | O19: 51614 | R19: 2014-11-01 | S19: 6213 | T19: 4079 | U19: 62 | V19: 971 | W19: 28 | X19: 563 | Y19: 3329.607655 | AA19: 2014-11-01 | AB19: 71372 | AC19: =SUM(T8:T19) -> 39913 | AD19: 436 | AE19: 8698 | AF19: 160 | AG19: 3867 | AI19: 2014-11-01 | AJ19: 6262 | AK19: 4079 | AL19: 62 | AM19: 971 | AN19: 28 | AO19: 563 | AP19: 3329.607655
I20: 2020-10-01 | J20: 45389 | K20: 2132 | L20: 188 | M20: 1299 | N20: 3335 | O20: 52343 | R20: 2014-12-01 | S20: 5218 | T20: 4091 | U20: 62 | V20: 979 | W20: 37 | X20: 579 | Y20: 3291.011208 | AA20: 2014-12-01 | AB20: 73238 | AC20: =SUM(T9:T20) -> 42167 | AD20: 492 | AE20: 9384 | AF20: 197 | AG20: 4396 | AI20: 2014-12-01 | AJ20: 5256 | AK20: 4091 | AL20: 62 | AM20: 979 | AN20: 37 | AO20: 579 | AP20: 3291.011208
I21: 2020-11-01 | J21: 41998 | K21: 1747 | L21: 153 | M21: 1138 | N21: 3106 | O21: 48142 | R21: 2015-01-01 | S21: 6172 | T21: 3618 | U21: 55 | V21: 977 | W21: 28 | X21: 633 | Y21: 3313.372306 | AA21: 2015-01-01 | AB21: 74185 | AC21: =SUM(T10:T21) -> 43433 | AD21: 537 | AE21: 9882 | AF21: 223 | AG21: 4921 | AI21: 2015-01-01 | AJ21: 6220 | AK21: 3618 | AL21: 55 | AM21: 977 | AN21: 28 | AO21: 633 | AP21: 3313.372306
B22: =SUBTOTAL(9,B24:B33) -> 80100 | E22: CNF Sent Monthly Volumes | I22: 2020-12-01 | J22: 35772 | K22: 1463 | L22: 139 | M22: 858 | N22: 2306 | O22: 40538 | R22: 2015-02-01 | S22: 6292 | T22: 3152 | U22: 67 | V22: 833 | W22: 43 | X22: 633 | Y22: 3339.562353 | AA22: 2015-02-01 | AB22: 75389 | AC22: =SUM(T11:T22) -> 44420 | AD22: 588 | AE22: 10272 | AF22: 262 | AG22: 5405 | AI22: 2015-02-01 | AJ22: 6330 | AK22: 3152 | AL22: 67 | AM22: 833 | AN22: 43 | AO22: 633 | AP22: 3339.562353
A23: Exit Process Reason | B23: Total | I23: 2021-01-01 | J23: 37685 | K23: 1075 | L23: 245 | M23: 1379 | N23: 2805 | O23: 43189 | R23: 2015-03-01 | S23: 6681 | T23: 4068 | U23: 65 | V23: 1072 | W23: 38 | X23: 730 | Y23: 3404.703342 | AA23: 2015-03-01 | AB23: 76303 | AC23: =SUM(T12:T23) -> 45341 | AD23: 624 | AE23: 10763 | AF23: 295 | AG23: 5927 | AI23: 2015-03-01 | AJ23: 6750 | AK23: 4068 | AL23: 65 | AM23: 1072 | AN23: 38 | AO23: 730 | AP23: 3404.703342
A24: Other | B24: 35023 | E24: DatePeriod | F24: ClaimType | G24: ClaimCount | I24: 2021-02-01 | J24: 33533 | K24: 1671 | L24: 161 | M24: 1502 | N24: 1894 | O24: 38761 | R24: 2015-04-01 | S24: 5851 | T24: 3802 | U24: 79 | V24: 953 | W24: 40 | X24: 661 | Y24: 3577.572465 | AA24: 2015-04-01 | AB24: 76647 | AC24: =SUM(T13:T24) -> 45874 | AD24: 677 | AE24: 11041 | AF24: 328 | AG24: 6343 | AI24: 2015-04-01 | AJ24: 5915 | AK24: 3802 | AL24: 79 | AM24: 953 | AN24: 40 | AO24: 661 | AP24: 3577.572465
A25: Claim requires further investigation | B25: 26306 | E25: 2019-12-01 | F25: RTA | G25: 39231 | I25: Grand Total | J25: 445306 | K25: 21349 | L25: 2192 | M25: 14860 | N25: 31522 | O25: 515229 | R25: 2015-05-01 | S25: 5354 | T25: 3397 | U25: 70 | V25: 949 | W25: 29 | X25: 632 | Y25: 3448.491534 | AA25: 2015-05-01 | AB25: 76181 | AC25: =SUM(T14:T25) -> 45804 | AD25: 713 | AE25: 11260 | AF25: 353 | AG25: 6706 | AI25: 2015-05-01 | AJ25: 5415 | AK25: 3397 | AL25: 70 | AM25: 949 | AN25: 29 | AO25: 632 | AP25: 3448.491534
A26: Duplicated claim | B26: 7009 | E26: 2020-01-01 | F26: RTA | G26: 60003 | R26: 2015-06-01 | S26: 6295 | T26: 3939 | U26: 59 | V26: 1006 | W26: 40 | X26: 729 | Y26: 3627.668943 | AA26: 2015-06-01 | AB26: 76282 | AC26: =SUM(T15:T26) -> 46208 | AD26: 731 | AE26: 11517 | AF26: 371 | AG26: 7091 | AI26: 2015-06-01 | AJ26: 6378 | AK26: 3939 | AL26: 59 | AM26: 1006 | AN26: 40 | AO26: 729 | AP26: 3627.668943
A27: Incomplete information provided on CNF | B27: 5308 | E27: 2020-02-01 | F27: RTA | G27: 55459 | R27: 2015-07-01 | S27: 6726 | T27: 3911 | U27: 75 | V27: 1063 | W27: 44 | X27: 748 | Y27: 3798.308355 | AA27: 2015-07-01 | AB27: 75796 | AC27: =SUM(T16:T27) -> 46146 | AD27: 753 | AE27: 11699 | AF27: 396 | AG27: 7393 | AI27: 2015-07-01 | AJ27: 6816 | AK27: 3911 | AL27: 75 | AM27: 1063 | AN27: 44 | AO27: 748 | AP27: 3798.308355
A28: Withdrawal of claim | B28: 2716 | E28: 2020-03-01 | F28: RTA | G28: 49232 | R28: 2015-08-01 | S28: 5874 | T28: 3590 | U28: 60 | V28: 939 | W28: 38 | X28: 626 | Y28: 3750.637843 | AA28: 2015-08-01 | AB28: 75538 | AC28: =SUM(T17:T28) -> 46093 | AD28: 776 | AE28: 11884 | AF28: 421 | AG28: 7635 | AI28: 2015-08-01 | AJ28: 5962 | AK28: 3590 | AL28: 60 | AM28: 939 | AN28: 38 | AO28: 626 | AP28: 3750.637843
A29: Value of claim exceeds the upper limit | B29: 2219 | E29: 2020-04-01 | F29: RTA | G29: 24499 | R29: 2015-09-01 | S29: 6091 | T29: 3947 | U29: 79 | V29: 1028 | W29: 52 | X29: 675 | Y29: 3700.065362 | AA29: 2015-09-01 | AB29: 74398 | AC29: =SUM(T18:T29) -> 45904 | AD29: 793 | AE29: 11904 | AF29: 451 | AG29: 7825 | AI29: 2015-09-01 | AJ29: 6183 | AK29: 3947 | AL29: 79 | AM29: 1028 | AN29: 52 | AO29: 675 | AP29: 3700.065362
A30: Claim is too complex for process | B30: 785 | E30: 2020-05-01 | F30: RTA | G30: 22866 | R30: 2015-10-01 | S30: 6046 | T30: 3769 | U30: 68 | V30: 1020 | W30: 42 | X30: 722 | Y30: 3454.266315 | AA30: 2015-10-01 | AB30: 72813 | AC30: =SUM(T19:T30) -> 45363 | AD30: 801 | AE30: 11790 | AF30: 459 | AG30: 7931 | AI30: 2015-10-01 | AJ30: 6164 | AK30: 3769 | AL30: 68 | AM30: 1020 | AN30: 42 | AO30: 722 | AP30: 3454.266315
A31: Value of claim below ú1,000 | B31: 415 | E31: 2020-06-01 | F31: RTA | G31: 32354 | R31: 2015-11-01 | S31: 5742 | T31: 3603 | U31: 85 | V31: 1008 | W31: 50 | X31: 709 | Y31: 3808.784358 | AA31: 2015-11-01 | AB31: 72342 | AC31: =SUM(T20:T31) -> 44887 | AD31: 824 | AE31: 11827 | AF31: 481 | AG31: 8077 | AI31: 2015-11-01 | AJ31: 5843 | AK31: 3603 | AL31: 85 | AM31: 1008 | AN31: 50 | AO31: 709 | AP31: 3808.784358
A32: Withdrawal of offer | B32: 259 | E32: 2020-07-01 | F32: RTA | G32: 39916 | R32: 2015-12-01 | S32: 4505 | T32: 3447 | U32: 87 | V32: 881 | W32: 45 | X32: 640 | Y32: 3785.048031 | AA32: 2015-12-01 | AB32: 71629 | AC32: =SUM(T21:T32) -> 44243 | AD32: 849 | AE32: 11729 | AF32: 489 | AG32: 8138 | AI32: 2015-12-01 | AJ32: 4584 | AK32: 3447 | AL32: 87 | AM32: 881 | AN32: 45 | AO32: 640 | AP32: 3785.048031
A33: Interim payment for child claimant | B33: 60 | E33: 2020-08-01 | F33: RTA | G33: 37522 | R33: 2016-01-01 | S33: 5113 | T33: 3271 | U33: 60 | V33: 933 | W33: 39 | X33: 620 | Y33: 3964.270467 | AA33: 2016-01-01 | AB33: 70570 | AC33: =SUM(T22:T33) -> 43896 | AD33: 854 | AE33: 11685 | AF33: 500 | AG33: 8125 | AI33: 2016-01-01 | AJ33: 5224 | AK33: 3271 | AL33: 60 | AM33: 933 | AN33: 39 | AO33: 620 | AP33: 3964.270467
E34: 2020-09-01 | F34: RTA | G34: 44540 | R34: 2016-02-01 | S34: 5607 | T34: 2786 | U34: 61 | V34: 859 | W34: 51 | X34: 662 | Y34: 3763.320241 | AA34: 2016-02-01 | AB34: 69885 | AC34: =SUM(T23:T34) -> 43530 | AD34: 848 | AE34: 11711 | AF34: 508 | AG34: 8154 | AI34: 2016-02-01 | AJ34: 5741 | AK34: 2786 | AL34: 61 | AM34: 859 | AN34: 51 | AO34: 662 | AP34: 3763.320241
E35: 2020-10-01 | F35: RTA | G35: 45389 | R35: 2016-03-01 | S35: 5600 | T35: 3433 | U35: 76 | V35: 1026 | W35: 50 | X35: 676 | Y35: 3927.201863 | AA35: 2016-03-01 | AB35: 68804 | AC35: =SUM(T24:T35) -> 42895 | AD35: 859 | AE35: 11665 | AF35: 520 | AG35: 8100 | AI35: 2016-03-01 | AJ35: 5739 | AK35: 3433 | AL35: 76 | AM35: 1026 | AN35: 50 | AO35: 676 | AP35: 3927.201863
E36: 2020-11-01 | F36: RTA | G36: 41998 | R36: 2016-04-01 | S36: 5302 | T36: 3395 | U36: 80 | V36: 981 | W36: 45 | X36: 661 | Y36: 3835.119606 | AA36: 2016-04-01 | AB36: 68255 | AC36: =SUM(T25:T36) -> 42488 | AD36: 860 | AE36: 11693 | AF36: 525 | AG36: 8100 | AI36: 2016-04-01 | AJ36: 5467 | AK36: 3395 | AL36: 80 | AM36: 981 | AN36: 45 | AO36: 662 | AP36: 3829.326374
E37: 2020-12-01 | F37: RTA | G37: 35772 | R37: 2016-05-01 | S37: 4848 | T37: 3163 | U37: 71 | V37: 982 | W37: 45 | X37: 568 | Y37: 3940.31625 | AA37: 2016-05-01 | AB37: 67749 | AC37: =SUM(T26:T37) -> 42254 | AD37: 861 | AE37: 11726 | AF37: 541 | AG37: 8036 | AI37: 2016-05-01 | AJ37: 5008 | AK37: 3163 | AL37: 71 | AM37: 982 | AN37: 45 | AO37: 568 | AP37: 3940.31625
E38: 2021-01-01 | F38: RTA | G38: 37685 | R38: 2016-06-01 | S38: 4289 | T38: 3405 | U38: 87 | V38: 973 | W38: 68 | X38: 627 | Y38: 3940.814944 | AA38: 2016-06-01 | AB38: 65743 | AC38: =SUM(T27:T38) -> 41720 | AD38: 889 | AE38: 11693 | AF38: 569 | AG38: 7934 | AI38: 2016-06-01 | AJ38: 4436 | AK38: 3405 | AL38: 87 | AM38: 973 | AN38: 68 | AO38: 627 | AP38: 3940.814944
E39: 2021-02-01 | F39: RTA | G39: 33533 | R39: 2016-07-01 | S39: 4666 | T39: 2698 | U39: 91 | V39: 884 | W39: 54 | X39: 526 | Y39: 4052.135988 | AA39: 2016-07-01 | AB39: 63683 | AC39: =SUM(T28:T39) -> 40507 | AD39: 905 | AE39: 11514 | AF39: 579 | AG39: 7712 | AI39: 2016-07-01 | AJ39: 4825 | AK39: 2698 | AL39: 91 | AM39: 884 | AN39: 54 | AO39: 526 | AP39: 4052.135988
E40: 2019-12-01 | G40: 1975 | R40: 2016-08-01 | S40: 5190 | T40: 2216 | U40: 38 | V40: 606 | W40: 35 | X40: 560 | Y40: 3937.630375 | AA40: 2016-08-01 | AB40: 62999 | AC40: =SUM(T29:T40) -> 39133 | AD40: 883 | AE40: 11181 | AF40: 576 | AG40: 7646 | AI40: 2016-08-01 | AJ40: 5351 | AK40: 2216 | AL40: 38 | AM40: 606 | AN40: 35 | AO40: 561 | AP40: 3945.673814
E41: 2020-01-01 | G41: 3643 | R41: 2016-09-01 | S41: 5466 | T41: 3277 | U41: 84 | V41: 954 | W41: 77 | X41: 604 | Y41: 3909.755695 | AA41: 2016-09-01 | AB41: 62374 | AC41: =SUM(T30:T41) -> 38463 | AD41: 888 | AE41: 11107 | AF41: 601 | AG41: 7575 | AI41: 2016-09-01 | AJ41: 5700 | AK41: 3277 | AL41: 84 | AM41: 954 | AN41: 77 | AO41: 604 | AP41: 3909.755695
E42: 2020-02-01 | G42: 3690 | R42: 2016-10-01 | S42: 4893 | T42: 3203 | U42: 87 | V42: 991 | W42: 53 | X42: 606 | Y42: 3812.838333 | AA42: 2016-10-01 | AB42: 61221 | AC42: =SUM(T31:T42) -> 37897 | AD42: 907 | AE42: 11078 | AF42: 612 | AG42: 7459 | AI42: 2016-10-01 | AJ42: 5182 | AK42: 3203 | AL42: 87 | AM42: 991 | AN42: 53 | AO42: 611 | AP42: 3817.713633
E43: 2020-03-01 | G43: 3460 | R43: 2016-11-01 | S43: 4806 | T43: 3320 | U43: 86 | V43: 939 | W43: 61 | X43: 600 | Y43: 4029.79975 | AA43: 2016-11-01 | AB43: 60285 | AC43: =SUM(T32:T43) -> 37614 | AD43: 908 | AE43: 11009 | AF43: 623 | AG43: 7350 | AI43: 2016-11-01 | AJ43: 5207 | AK43: 3320 | AL43: 86 | AM43: 939 | AN43: 61 | AO43: 602 | AP43: 4037.591112
E44: 2020-04-01 | G44: 2241 | R44: 2016-12-01 | S44: 3563 | T44: 2775 | U44: 76 | V44: 784 | W44: 56 | X44: 518 | Y44: 4150.815386 | AA44: 2016-12-01 | AB44: 59343 | AC44: =SUM(T33:T44) -> 36942 | AD44: 897 | AE44: 10912 | AF44: 634 | AG44: 7228 | AI44: 2016-12-01 | AJ44: 3892 | AK44: 2775 | AL44: 76 | AM44: 784 | AN44: 56 | AO44: 537 | AP44: 4184.441098
E45: 2020-05-01 | G45: 1818 | R45: 2017-01-01 | S45: 4635 | T45: 2833 | U45: 74 | V45: 878 | W45: 85 | X45: 549 | Y45: 3828.351548 | AA45: 2017-01-01 | AB45: 58865 | AC45: =SUM(T34:T45) -> 36504 | AD45: 911 | AE45: 10857 | AF45: 680 | AG45: 7157 | AI45: 2017-01-01 | AJ45: 5119 | AK45: 2833 | AL45: 74 | AM45: 878 | AN45: 85 | AO45: 574 | AP45: 3854.929425
E46: 2020-06-01 | G46: 2235 | R46: 2017-02-01 | S46: 4445 | T46: 2374 | U46: 56 | V46: 750 | W46: 64 | X46: 580 | Y46: 3937.663224 | AA46: 2017-02-01 | AB46: 57703 | AC46: =SUM(T35:T46) -> 36092 | AD46: 906 | AE46: 10748 | AF46: 693 | AG46: 7075 | AI46: 2017-02-01 | AJ46: 4907 | AK46: 2374 | AL46: 56 | AM46: 750 | AN46: 64 | AO46: 599 | AP46: 3942.103121
E47: 2020-07-01 | G47: 2679 | R47: 2017-03-01 | S47: 5321 | T47: 3297 | U47: 80 | V47: 944 | W47: 78 | X47: 634 | Y47: 4175.683817 | AA47: 2017-03-01 | AB47: =SUM(S36:S47) -> 57424 | AC47: =SUM(T36:T47) -> 35956 | AD47: 910 | AE47: 10666 | AF47: 721 | AG47: 7033 | AI47: 2017-03-01 | AJ47: 5804 | AK47: 3297 | AL47: 80 | AM47: 944 | AN47: 78 | AO47: 650 | AP47: 4167.231523
E48: 2020-08-01 | G48: 2425 | R48: 2017-04-01 | S48: 3778 | T48: 2622 | U48: 66 | V48: 742 | W48: 44 | X48: 555 | Y48: 4283.840558 | AA48: 2017-04-01 | AB48: 55900 | AC48: =SUM(T37:T48) -> 35183 | AD48: 896 | AE48: 10427 | AF48: 720 | AG48: 6927 | AI48: 2017-04-01 | AJ48: 4124 | AK48: 2622 | AL48: 66 | AM48: 742 | AN48: 44 | AO48: 568 | AP48: 4270.86551
E49: 2020-09-01 | G49: 3218 | R49: 2017-05-01 | S49: 4619 | T49: 3139 | U49: 63 | V49: 873 | W49: 77 | X49: 623 | Y49: 3954.526597 | AA49: 2017-05-01 | AB49: 55671 | AC49: =SUM(T38:T49) -> 35159 | AD49: 888 | AE49: 10318 | AF49: 752 | AG49: 6982 | AI49: 2017-05-01 | AJ49: 5058 | AK49: 3139 | AL49: 63 | AM49: 873 | AN49: 77 | AO49: 637 | AP49: 4016.531632
E50: 2020-10-01 | G50: 3335 | R50: 2017-06-01 | S50: 4564 | T50: 2962 | U50: 67 | V50: 891 | W50: 72 | X50: 579 | Y50: 4250.538462 | AA50: 2017-06-01 | AB50: 55946 | AC50: =SUM(T39:T50) -> 34716 | AD50: 868 | AE50: 10236 | AF50: 756 | AG50: 6934 | AI50: 2017-06-01 | AJ50: 4984 | AK50: 2962 | AL50: 67 | AM50: 891 | AN50: 72 | AO50: 599 | AP50: 4289.413806
E51: 2020-11-01 | G51: 3106 | R51: 2017-07-01 | S51: 4449 | T51: 2907 | U51: 64 | V51: 909 | W51: 87 | X51: 557 | Y51: 4291.468904 | AA51: 2017-07-01 | AB51: 55729 | AC51: =SUM(T40:T51) -> 34925 | AD51: 841 | AE51: 10261 | AF51: 789 | AG51: 6965 | AI51: 2017-07-01 | AJ51: 4865 | AK51: 2907 | AL51: 64 | AM51: 909 | AN51: 87 | AO51: 570 | AP51: 4294.28628
E52: 2020-12-01 | G52: 2306 | R52: 2017-08-01 | S52: 4750 | T52: 2924 | U52: 62 | V52: 901 | W52: 72 | X52: 548 | Y52: 4113.923667 | AA52: 2017-08-01 | AB52: 55289 | AC52: =SUM(T41:T52) -> 35633 | AD52: 865 | AE52: 10556 | AF52: 826 | AG52: 6953 | AI52: 2017-08-01 | AJ52: 5186 | AK52: 2924 | AL52: 62 | AM52: 901 | AN52: 72 | AO52: 560 | AP52: 4116.750303
E53: 2021-01-01 | G53: 2805 | R53: 2017-09-01 | S53: 4459 | T53: 2888 | U53: 57 | V53: 823 | W53: 65 | X53: 520 | Y53: 3992.460019 | AA53: 2017-09-01 | AB53: 54282 | AC53: =SUM(T42:T53) -> 35244 | AD53: 838 | AE53: 10425 | AF53: 814 | AG53: 6869 | AI53: 2017-09-01 | AJ53: 4906 | AK53: 2888 | AL53: 57 | AM53: 823 | AN53: 65 | AO53: 537 | AP53: 4020.259236
E54: 2021-02-01 | G54: 1894 | R54: 2017-10-01 | S54: 4783 | T54: 3055 | U54: 64 | V54: 894 | W54: 84 | X54: 542 | Y54: 4054.326918 | AA54: 2017-10-01 | AB54: 54172 | AC54: =SUM(T43:T54) -> 35096 | AD54: 815 | AE54: 10328 | AF54: 845 | AG54: 6805 | AI54: 2017-10-01 | AJ54: 5256 | AK54: 3055 | AL54: 64 | AM54: 894 | AN54: 84 | AO54: 560 | AP54: 4083.875339
E55: 2019-12-01 | F55: EL | G55: 1173 | R55: 2017-11-01 | S55: 4745 | T55: 3115 | U55: 52 | V55: 922 | W55: 89 | X55: 562 | Y55: 4275.216957 | AA55: 2017-11-01 | AB55: 54111 | AC55: =SUM(T44:T55) -> 34891 | AD55: 781 | AE55: 10311 | AF55: 873 | AG55: 6767 | AI55: 2017-11-01 | AJ55: 5165 | AK55: 3115 | AL55: 52 | AM55: 922 | AN55: 89 | AO55: 575 | AP55: 4293.342486
E56: 2020-01-01 | F56: EL | G56: 2035 | R56: 2017-12-01 | S56: 3208 | T56: 2616 | U56: 58 | V56: 766 | W56: 73 | X56: 436 | Y56: 4181.007454 | AA56: 2017-12-01 | AB56: 53756 | AC56: =SUM(T45:T56) -> 34732 | AD56: 763 | AE56: 10293 | AF56: 890 | AG56: 6685 | AI56: 2017-12-01 | AJ56: 3611 | AK56: 2616 | AL56: 58 | AM56: 766 | AN56: 73 | AO56: 447 | AP56: 4242.804899
E57: 2020-02-01 | F57: EL | G57: 1973 | R57: 2018-01-01 | S57: 4668 | T57: 2877 | U57: 47 | V57: 890 | W57: 75 | X57: 505 | Y57: 4094.654574 | AA57: 2018-01-01 | AB57: 53789 | AC57: =SUM(T46:T57) -> 34776 | AD57: 736 | AE57: 10305 | AF57: 880 | AG57: 6641 | AI57: 2018-01-01 | AJ57: 5161 | AK57: 2877 | AL57: 47 | AM57: 890 | AN57: 75 | AO57: 521 | AP57: 4110.365758
E58: 2020-03-01 | F58: EL | G58: 1798 | R58: 2018-02-01 | S58: 4492 | T58: 2271 | U58: 52 | V58: 744 | W58: 61 | X58: 542 | Y58: 4224.059833 | AA58: 2018-02-01 | AB58: 53836 | AC58: =SUM(T47:T58) -> 34673 | AD58: 732 | AE58: 10299 | AF58: 877 | AG58: 6603 | AI58: 2018-02-01 | AJ58: 4956 | AK58: 2271 | AL58: 52 | AM58: 744 | AN58: 61 | AO58: 554 | AP58: 4213.65962
E59: 2020-04-01 | F59: EL | G59: 1215 | R59: 2018-03-01 | S59: 4364 | T59: 2970 | U59: 73 | V59: 893 | W59: 81 | X59: 565 | Y59: 4118.393185 | AA59: 2018-03-01 | AB59: 52879 | AC59: =SUM(T48:T59) -> 34346 | AD59: 725 | AE59: 10248 | AF59: 880 | AG59: 6534 | AI59: 2018-03-01 | AJ59: 4822 | AK59: 2970 | AL59: 73 | AM59: 893 | AN59: 81 | AO59: 576 | AP59: 4151.809288
E60: 2020-05-01 | F60: EL | G60: 902 | R60: 2018-04-01 | S60: 4209 | T60: 2772 | U60: 69 | V60: 825 | W60: 55 | X60: 525 | Y60: 4323.413485 | AA60: 2018-04-01 | AB60: 53310 | AC60: =SUM(T49:T60) -> 34496 | AD60: 728 | AE60: 10331 | AF60: 891 | AG60: 6504 | AI60: 2018-04-01 | AJ60: 4664 | AK60: 2772 | AL60: 69 | AM60: 825 | AN60: 55 | AO60: 538 | AP60: 4344.920223
E61: 2020-06-01 | F61: EL | G61: 1064 | R61: 2018-05-01 | S61: 4279 | T61: 2887 | U61: 62 | V61: 889 | W61: 73 | X61: 550 | Y61: 4171.907872 | AA61: 2018-05-01 | AB61: 52970 | AC61: =SUM(T50:T61) -> 34244 | AD61: 727 | AE61: 10347 | AF61: 887 | AG61: 6431 | AI61: 2018-05-01 | AJ61: 4739 | AK61: 2887 | AL61: 62 | AM61: 889 | AN61: 73 | AO61: 567 | AP61: 4182.450317
E62: 2020-07-01 | F62: EL | G62: 1188 | R62: 2018-06-01 | S62: 4265 | T62: 2818 | U62: 56 | V62: 819 | W62: 78 | X62: 530 | Y62: 3953.958981 | AA62: 2018-06-01 | AB62: 52671 | AC62: =SUM(T51:T62) -> 34100 | AD62: 716 | AE62: 10275 | AF62: 893 | AG62: 6382 | AI62: 2018-06-01 | AJ62: 4741 | AK62: 2818 | AL62: 56 | AM62: 819 | AN62: 78 | AO62: 544 | AP62: 3965.897536
E63: 2020-08-01 | F63: EL | G63: 1094 | R63: 2018-07-01 | S63: 4385 | T63: 2817 | U63: 51 | V63: 939 | W63: 69 | X63: 485 | Y63: 4291.491051 | AA63: 2018-07-01 | AB63: 52607 | AC63: =SUM(T52:T63) -> 34010 | AD63: 703 | AE63: 10305 | AF63: 875 | AG63: 6310 | AI63: 2018-07-01 | AJ63: 4848 | AK63: 2817 | AL63: 51 | AM63: 939 | AN63: 69 | AO63: 502 | AP63: 4339.687569
E64: 2020-09-01 | F64: EL | G64: 1423 | R64: 2018-08-01 | S64: 4418 | T64: 2911 | U64: 57 | V64: 905 | W64: 76 | X64: 495 | Y64: 4343.665696 | AA64: 2018-08-01 | AB64: 52275 | AC64: =SUM(T53:T64) -> 33997 | AD64: 698 | AE64: 10309 | AF64: 879 | AG64: 6257 | AI64: 2018-08-01 | AJ64: 4892 | AK64: 2911 | AL64: 57 | AM64: 905 | AN64: 76 | AO64: 505 | AP64: 4379.137663
E65: 2020-10-01 | F65: EL | G65: 1299 | R65: 2018-09-01 | S65: 4270 | T65: 2565 | U65: 50 | V65: 848 | W65: 60 | X65: 428 | Y65: 4272.077476 | AA65: 2018-09-01 | AB65: 52086 | AC65: =SUM(T54:T65) -> 33674 | AD65: 691 | AE65: 10334 | AF65: 874 | AG65: 6165 | AI65: 2018-09-01 | AJ65: 4735 | AK65: 2565 | AL65: 50 | AM65: 848 | AN65: 60 | AO65: 443 | AP65: 4282.278013
E66: 2020-11-01 | F66: EL | G66: 1138 | R66: 2018-10-01 | S66: 4802 | T66: 3010 | U66: 48 | V66: 985 | W66: 70 | X66: 544 | Y66: 4282.567977 | AA66: 2018-10-01 | AB66: 52105 | AC66: =SUM(T55:T66) -> 33629 | AD66: 675 | AE66: 10425 | AF66: 860 | AG66: 6167 | AI66: 2018-10-01 | AJ66: 5369 | AK66: 3010 | AL66: 48 | AM66: 985 | AN66: 70 | AO66: 560 | AP66: 4335.47675
E67: 2020-12-01 | F67: EL | G67: 858 | R67: 2018-11-01 | S67: 4674 | T67: 3053 | U67: 54 | V67: 979 | W67: 59 | X67: 616 | Y67: 4333.21698 | AA67: 2018-11-01 | AB67: 52034 | AC67: =SUM(T56:T67) -> 33567 | AD67: 677 | AE67: 10482 | AF67: 830 | AG67: 6221 | AI67: 2018-11-01 | AJ67: 5180 | AK67: 3053 | AL67: 54 | AM67: 979 | AN67: 59 | AO67: 627 | AP67: 4329.468564
E68: 2021-01-01 | F68: EL | G68: 1379 | R68: 2018-12-01 | S68: 3053 | T68: 2557 | U68: 43 | V68: 742 | W68: 48 | X68: 461 | Y68: 3924.070173 | AA68: 2018-12-01 | AB68: 51879 | AC68: =SUM(T57:T68) -> 33508 | AD68: 662 | AE68: 10458 | AF68: 805 | AG68: 6246 | AI68: 2018-12-01 | AJ68: 3432 | AK68: 2557 | AL68: 43 | AM68: 742 | AN68: 48 | AO68: 471 | AP68: 3918.664246
E69: 2021-02-01 | F69: EL | G69: 1502 | R69: 2019-01-01 | S69: 4101 | T69: 3001 | U69: 60 | V69: 818 | W69: 82 | X69: 516 | Y69: 4202.502248 | AA69: 2019-01-01 | AB69: 51312 | AC69: =SUM(T58:T69) -> 33632 | AD69: 675 | AE69: 10386 | AF69: 812 | AG69: 6257 | AI69: 2019-01-01 | AJ69: 4652 | AK69: 3001 | AL69: 60 | AM69: 818 | AN69: 82 | AO69: 538 | AP69: 4257.279107
E70: 2019-12-01 | F70: ELD | G70: 127 | R70: 2019-02-01 | S70: 4037 | T70: 2096 | U70: 55 | V70: 615 | W70: 66 | X70: 535 | Y70: 3943.770056 | AA70: 2019-02-01 | AB70: 50857 | AC70: =SUM(T59:T70) -> 33457 | AD70: 678 | AE70: 10257 | AF70: 817 | AG70: 6250 | AI70: 2019-02-01 | AJ70: 4582 | AK70: 2096 | AL70: 55 | AM70: 615 | AN70: 66 | AO70: 546 | AP70: 3956.258205
E71: 2020-01-01 | F71: ELD | G71: 218 | R71: 2019-03-01 | S71: 4272 | T71: 2831 | U71: 45 | V71: 773 | W71: 82 | X71: 624 | Y71: 4377.112019 | AA71: 2019-03-01 | AB71: 50765 | AC71: =SUM(T60:T71) -> 33318 | AD71: 650 | AE71: 10137 | AF71: 818 | AG71: 6309 | AI71: 2019-03-01 | AJ71: 4831 | AK71: 2831 | AL71: 45 | AM71: 773 | AN71: 82 | AO71: 643 | AP71: 4356.284447
E72: 2020-02-01 | F72: ELD | G72: 228 | R72: 2019-04-01 | S72: 3833 | T72: 2782 | U72: 50 | V72: 729 | W72: 69 | X72: 502 | Y72: 4226.263366 | AA72: 2019-04-01 | AB72: 50389 | AC72: =SUM(T61:T72) -> 33328 | AD72: 631 | AE72: 10041 | AF72: 832 | AG72: 6286 | AI72: 2019-04-01 | AJ72: 4401 | AK72: 2782 | AL72: 50 | AM72: 729 | AN72: 69 | AO72: 514 | AP72: 4257.751381
E73: 2020-03-01 | F73: ELD | G73: 192 | R73: 2019-05-01 | S73: 3829 | T73: 2882 | U73: 45 | V73: 850 | W73: 72 | X73: 528 | Y73: 4206.971666 | AA73: 2019-05-01 | AB73: 49939 | AC73: =SUM(T62:T73) -> 33323 | AD73: 614 | AE73: 10002 | AF73: 831 | AG73: 6264 | AI73: 2019-05-01 | AJ73: 4374 | AK73: 2882 | AL73: 45 | AM73: 850 | AN73: 72 | AO73: 545 | AP73: 4283.996495
E74: 2020-04-01 | F74: ELD | G74: 262 | R74: 2019-06-01 | S74: 3624 | T74: 2614 | U74: 61 | V74: 729 | W74: 79 | X74: 465 | Y74: 4237.392129 | AA74: 2019-06-01 | AB74: 49298 | AC74: =SUM(T63:T74) -> 33119 | AD74: 619 | AE74: 9912 | AF74: 832 | AG74: 6199 | AI74: 2019-06-01 | AJ74: 4188 | AK74: 2614 | AL74: 61 | AM74: 729 | AN74: 79 | AO74: 476 | AP74: 4252.704495
E75: 2020-05-01 | F75: ELD | G75: 164 | R75: 2019-07-01 | S75: 4394 | T75: 2851 | U75: 52 | V75: 889 | W75: 78 | X75: 551 | Y75: 4510.461288 | AA75: 2019-07-01 | AB75: 49307 | AC75: =SUM(T64:T75) -> 33153 | AD75: 620 | AE75: 9862 | AF75: 841 | AG75: 6265 | AI75: 2019-07-01 | AJ75: 5078 | AK75: 2851 | AL75: 52 | AM75: 889 | AN75: 78 | AO75: 569 | AP75: 4552.951089
E76: 2020-06-01 | F76: ELD | G76: 162 | R76: 2019-08-01 | S76: 3523 | T76: 2607 | U76: 44 | V76: 780 | W76: 82 | X76: 457 | Y76: 4378.516017 | AA76: 2019-08-01 | AB76: 48412 | AC76: =SUM(T65:T76) -> 32849 | AD76: 607 | AE76: 9737 | AF76: 847 | AG76: 6227 | AI76: 2019-08-01 | AJ76: 4784 | AK76: 2607 | AL76: 44 | AM76: 780 | AN76: 82 | AO76: 472 | AP76: 4406.403432
E77: 2020-07-01 | F77: ELD | G77: 199 | R77: 2019-09-01 | S77: 2985 | T77: 2850 | U77: 45 | V77: 785 | W77: 57 | X77: 455 | Y77: 4215.23545 | AA77: 2019-09-01 | AB77: 47127 | AC77: =SUM(T66:T77) -> 33134 | AD77: 602 | AE77: 9674 | AF77: 844 | AG77: 6254 | AI77: 2019-09-01 | AJ77: 4514 | AK77: 2850 | AL77: 45 | AM77: 791 | AN77: 59 | AO77: 480 | AP77: 4234.286937
E78: 2020-08-01 | F78: ELD | G78: 119 | R78: 2019-10-01 | S78: 2971 | T78: 2150 | U78: 46 | V78: 611 | W78: 58 | X78: 458 | Y78: 4489.356004 | AA78: 2019-10-01 | AB78: 45296 | AC78: =SUM(T67:T78) -> 32274 | AD78: 600 | AE78: 9300 | AF78: 832 | AG78: 6168 | AI78: 2019-10-01 | AJ78: 4860 | AK78: 2554 | AL78: 67 | AM78: 851 | AN78: 89 | AO78: 550 | AP78: 4512.531945
E79: 2020-09-01 | F79: ELD | G79: 208 | R79: 2019-11-01 | S79: 2684 | T79: 1809 | U79: 24 | V79: 589 | W79: 50 | X79: 435 | Y79: 4169.866321 | AA79: 2019-11-01 | AB79: =SUM(S68:S79) -> 43306 | AC79: =SUM(T68:T79) -> 31030 | AD79: 570 | AE79: 8910 | AF79: 823 | AG79: 5987 | AI79: 2019-11-01 | AJ79: 4516 | AK79: 2210 | AL79: 40 | AM79: 806 | AN79: 77 | AO79: 511 | AP79: 4165.443933
E80: 2020-10-01 | F80: ELD | G80: 188 | R80: 2019-12-01 | S80: 2056 | T80: 1690 | U80: 30 | V80: 482 | W80: 40 | X80: 368 | Y80: 4211.665326 | AA80: 2019-12-01 | AB80: 42309 | AC80: =SUM(T69:T80) -> 30163 | AD80: 557 | AE80: 8650 | AF80: 815 | AG80: 5894 | AI80: 2019-12-01 | AJ80: 3415 | AK80: 2110 | AL80: 43 | AM80: 724 | AN80: 58 | AO80: 430 | AP80: 4213.024046
E81: 2020-11-01 | F81: ELD | G81: 153 | R81: 2020-01-01 | S81: 2754 | T81: 1815 | U81: 23 | V81: 551 | W81: 46 | X81: 447 | Y81: 4328.090894 | AA81: 2020-01-01 | AB81: 40962 | AC81: =SUM(T70:T81) -> 28977 | AD81: 520 | AE81: 8383 | AF81: 779 | AG81: 5825 | AI81: 2020-01-01 | AJ81: 4668 | AK81: 2270 | AL81: 40 | AM81: 806 | AN81: 62 | AO81: 515 | AP81: 4338.770155
E82: 2020-12-01 | F82: ELD | G82: 139 | R82: 2020-02-01 | S82: 2645 | T82: 1406 | U82: 26 | V82: 468 | W82: 53 | X82: 411 | Y82: 4237.379683 | AA82: 2020-02-01 | AB82: 39570 | AC82: =SUM(T71:T82) -> 28287 | AD82: 491 | AE82: 8236 | AF82: 766 | AG82: 5701 | AI82: 2020-02-01 | AJ82: 4534 | AK82: 1714 | AL82: 41 | AM82: 689 | AN82: 84 | AO82: 491 | AP82: 4327.573197
E83: 2021-01-01 | F83: ELD | G83: 245 | R83: 2020-03-01 | S83: 2586 | T83: 1937 | U83: 43 | V83: 576 | W83: 46 | X83: 408 | Y83: 4499.423504 | AA83: 2020-03-01 | AB83: 37884 | AC83: =SUM(T72:T83) -> 27393 | AD83: 489 | AE83: 8039 | AF83: 730 | AG83: 5485 | AI83: 2020-03-01 | AJ83: 4310 | AK83: 2417 | AL83: 70 | AM83: 878 | AN83: 74 | AO83: 497 | AP83: 4435.140422
E84: 2021-02-01 | F84: ELD | G84: 161 | R84: 2020-04-01 | S84: 1703 | T84: 1879 | U84: 33 | V84: 501 | W84: 47 | X84: 400 | Y84: 4507.785 | AA84: 2020-04-01 | AB84: 35754 | AC84: =SUM(T73:T84) -> 26490 | AD84: 472 | AE84: 7811 | AF84: 708 | AG84: 5383 | AI84: 2020-04-01 | AJ84: 2857 | AK84: 2362 | AL84: 49 | AM84: 754 | AN84: 67 | AO84: 463 | AP84: 4444.004341
E85: 2019-12-01 | F85: PL | G85: 1578 | R85: 2020-05-01 | S85: 1378 | T85: 1422 | U85: 23 | V85: 399 | W85: 47 | X85: 309 | Y85: 4405.331326 | AA85: 2020-05-01 | AB85: 33303 | AC85: =SUM(T74:T85) -> 25030 | AD85: 450 | AE85: 7360 | AF85: 683 | AG85: 5164 | AI85: 2020-05-01 | AJ85: 2284 | AK85: 1801 | AL85: 32 | AM85: 608 | AN85: 72 | AO85: 392 | AP85: 4446.421887
E86: 2020-01-01 | F86: PL | G86: 2754 | R86: 2020-06-01 | S86: 1658 | T86: 1299 | U86: 27 | V86: 336 | W86: 37 | X86: 297 | Y86: 4551.161616 | AA86: 2020-06-01 | AB86: =SUM(S75:S86) -> 31337 | AC86: 23715 | AD86: 416 | AE86: 6967 | AF86: 641 | AG86: 4996 | AI86: 2020-06-01 | AJ86: 2713 | AK86: 1512 | AL86: 42 | AM86: 513 | AN86: 56 | AO86: 361 | AP86: 4457.881495
E87: 2020-02-01 | F87: PL | G87: 2645 | R87: 2020-07-01 | S87: 1930 | T87: 1164 | U87: 22 | V87: 343 | W87: 31 | X87: 255 | Y87: 4857.192509 | AA87: 2020-07-01 | AB87: =SUM(S76:S87) -> 28873 | AC87: 22028 | AD87: 386 | AE87: 6421 | AF87: 594 | AG87: 4700 | AI87: 2020-07-01 | AJ87: 3147 | AK87: 1378 | AL87: 37 | AM87: 488 | AN87: 47 | AO87: 310 | AP87: 4767.555129
E88: 2020-03-01 | F88: PL | G88: 2586 | R88: 2020-08-01 | S88: 1781 | T88: 1126 | U88: 21 | V88: 305 | W88: 21 | X88: 208 | Y88: 4876.138125 | AA88: 2020-08-01 | AB88: =SUM(S77:S88) -> 27131 | AC88: =SUM(T77:T88) -> 20547 | AD88: 363 | AE88: 5946 | AF88: 533 | AG88: 4451 | AI88: 2020-08-01 | AJ88: 2544 | AK88: 1217 | AL88: 30 | AM88: 422 | AN88: 35 | AO88: 228 | AP88: 4843.45057
E89: 2020-04-01 | F89: PL | G89: 1703 | R89: 2020-09-01 | S89: 2225 | T89: 1370 | U89: 20 | V89: 381 | W89: 29 | X89: 283 | Y89: 4371.784805 | AA89: 2020-09-01 | AB89: =SUM(S78:S89) -> 26371 | AC89: 19067 | AD89: 338 | AE89: 5542 | AF89: 505 | AG89: 4279 | AI89: 2020-09-01 | AJ89: 3548 | AK89: 1629 | AL89: 35 | AM89: 545 | AN89: 51 | AO89: 325 | AP89: 4378.508
E90: 2020-05-01 | F90: PL | G90: 1378 | R90: 2020-10-01 | S90: 2132 | T90: 1491 | U90: 26 | V90: 377 | W90: 31 | X90: 273 | Y90: 4653.554139 | AA90: 2020-10-01 | AB90: =SUM(S79:S90) -> 25532 | AC90: 18408 | AD90: 318 | AE90: 5308 | AF90: 478 | AG90: 4094 | AI90: 2020-10-01 | AJ90: 3817 | AK90: 1749 | AL90: 41 | AM90: 623 | AN90: 49 | AO90: 328 | AP90: 4633.476463
E91: 2020-06-01 | F91: PL | G91: 1658 | R91: 2020-11-01 | S91: 1747 | T91: 1604 | U91: 30 | V91: 415 | W91: 26 | X91: 291 | Y91: 4810.599484 | AA91: 2020-11-01 | AB91: =SUM(S80:S91) -> 24595 | AC91: 18203 | AD91: 324 | AE91: 5134 | AF91: 454 | AG91: 3950 | AI91: 2020-11-01 | AJ91: 3172 | AK91: 1907 | AL91: 48 | AM91: 624 | AN91: 43 | AO91: 343 | AP91: 4743.351166
E92: 2020-07-01 | F92: PL | G92: 1930 | R92: 2020-12-01 | S92: 1463 | T92: 1527 | U92: 22 | V92: 337 | W92: 29 | X92: 238 | Y92: 4413.989243 | AA92: 2020-12-01 | AB92: =SUM(S81:S92) -> 24002 | AC92: =SUM(T81:T92) -> 18040 | AD92: 316 | AE92: 4989 | AF92: 443 | AG92: 3820 | AI92: 2020-12-01 | AJ92: 2510 | AK92: 1794 | AL92: 29 | AM92: 576 | AN92: 55 | AO92: 306 | AP92: 4367.751503
E93: 2020-08-01 | F93: PL | G93: 1781 | R93: 2021-01-01 | S93: 1075 | T93: 1229 | U93: 13 | V93: 302 | W93: 18 | X93: 286 | Y93: 4511.289055 | AA93: 2021-01-01 | AB93: =SUM(S82:S93) -> 22323 | AC93: 17454 | AD93: 306 | AE93: 4740 | AF93: 415 | AG93: 3659 | AI93: 2021-01-01 | AJ93: 2953 | AK93: 1521 | AL93: 21 | AM93: 529 | AN93: 43 | AO93: 356 | AP93: 4548.306966
E94: 2020-09-01 | F94: PL | G94: 2225 | R94: 2021-02-01 | S94: 1671 | T94: 1046 | U94: 23 | V94: 324 | W94: 34 | X94: 303 | Y94: 4595.191023 | AA94: 2021-02-01 | AB94: =SUM(S83:S94) -> 21349 | AC94: 17094 | AD94: 303 | AE94: 4596 | AF94: 396 | AG94: 3551
E95: 2020-10-01 | F95: PL | G95: 2132
E96: 2020-11-01 | F96: PL | G96: 1747
E97: 2020-12-01 | F97: PL | G97: 1463
E98: 2021-01-01 | F98: PL | G98: 1075
E99: 2021-02-01 | F99: PL | G99: 1671

Sheet Year Calculations (hidden)
A1: Period | B1: CNFs sent | C1: CNFs left at stage 1 | D1: Stage 2 exit | E1: Exit process | F1: Court pack | G1: Settled claims
A2: 2013-14 | B2: =SUM('Backing Sheet Data'!S4:S15) -> 53599 | C2: =SUM('Backing Sheet Data'!T4:T15) -> 26357 | D2: =SUM('Backing Sheet Data'!U4:U15) -> 216 | E2: =SUM('Backing Sheet Data'!V4:V15) -> 5444 | F2: =SUM('Backing Sheet Data'!W4:W15) -> 63 | G2: =SUM('Backing Sheet Data'!X4:X15) -> 1870
A3: 2014-15 | B3: =SUM('Backing Sheet Data'!S16:S27) -> 75796 | C3: =SUM('Backing Sheet Data'!T16:T27) -> 46146 | D3: =SUM('Backing Sheet Data'!U16:U27) -> 753 | E3: =SUM('Backing Sheet Data'!V16:V27) -> 11699 | F3: =SUM('Backing Sheet Data'!W16:W27) -> 396 | G3: =SUM('Backing Sheet Data'!X16:X27) -> 7393
A4: 2015-16 | B4: =SUM('Backing Sheet Data'!S28:S39) -> 63683 | C4: =SUM('Backing Sheet Data'!T28:T39) -> 40507 | D4: =SUM('Backing Sheet Data'!U28:U39) -> 905 | E4: =SUM('Backing Sheet Data'!V28:V39) -> 11514 | F4: =SUM('Backing Sheet Data'!W28:W39) -> 579 | G4: =SUM('Backing Sheet Data'!X28:X39) -> 7712
A5: 2016-17 | B5: =SUM('Backing Sheet Data'!S40:S51) -> 55729 | C5: =SUM('Backing Sheet Data'!T40:T51) -> 34925 | D5: =SUM('Backing Sheet Data'!U40:U51) -> 841 | E5: =SUM('Backing Sheet Data'!V40:V51) -> 10261 | F5: =SUM('Backing Sheet Data'!W40:W51) -> 789 | G5: =SUM('Backing Sheet Data'!X40:X51) -> 6965
A6: 2017-18 | B6: =SUM('Backing Sheet Data'!S52:S63) -> 52607 | C6: =SUM('Backing Sheet Data'!T52:T63) -> 34010 | D6: =SUM('Backing Sheet Data'!U52:U63) -> 703 | E6: =SUM('Backing Sheet Data'!V52:V63) -> 10305 | F6: =SUM('Backing Sheet Data'!W52:W63) -> 875 | G6: =SUM('Backing Sheet Data'!X52:X63) -> 6310
A7: 2018-19 | B7: =SUM('Backing Sheet Data'!S64:S75) -> 49307 | C7: =SUM('Backing Sheet Data'!T64:T75) -> 33153 | D7: =SUM('Backing Sheet Data'!U64:U75) -> 620 | E7: =SUM('Backing Sheet Data'!V64:V75) -> 9862 | F7: =SUM('Backing Sheet Data'!W64:W75) -> 841 | G7: =SUM('Backing Sheet Data'!X64:X75) -> 6265
A8: 2019-20 | B8: =SUM('Backing Sheet Data'!S76:S87) -> 28873 | C8: =SUM('Backing Sheet Data'!T76:T87) -> 22028 | D8: =SUM('Backing Sheet Data'!U76:U87) -> 386 | E8: =SUM('Backing Sheet Data'!V76:V87) -> 6421 | F8: =SUM('Backing Sheet Data'!W76:W87) -> 594 | G8: =SUM('Backing Sheet Data'!X76:X87) -> 4700
A9: 2020-21 | B9: =SUM('Backing Sheet Data'!S88:S99) -> 12094 | C9: =SUM('Backing Sheet Data'!T88:T99) -> 9393 | D9: =SUM('Backing Sheet Data'!U88:U99) -> 155 | E9: =SUM('Backing Sheet Data'!V88:V99) -> 2441 | F9: =SUM('Backing Sheet Data'!W88:W99) -> 188 | G9: =SUM('Backing Sheet Data'!X88:X99) -> 1882
